lending/lending_fUSD_20250819
["ID","MTS","AMOUNT","RATE_DAILY","PERIOD"]
[380190006,1755601832707,-300.0,0.0001001,2]
[380190007,1755601832716,-156.67,0.00010012,2]
[380190008,1755601832726,-156.67,0.00010021,2]
[380190009,1755601832735,-749.0,0.00010029,2]
[380190010,1755601832744,-156.67,0.0001003,2]
[380190011,1755601832753,-156.67,0.00010039,2]
[380190012,1755601832763,-156.67,0.00010048,2]
[380190013,1755601832772,-156.67,0.00010057,2]
[380190014,1755601832781,-201.89,0.00010095,2]
[380190015,1755601832791,-203.61,0.00010095,2]
[380190016,1755601832801,-200.37,0.00010095,2]
[380190017,1755601832810,-202.09,0.00010095,2]
[380190018,1755601832820,-201.95,0.00010095,2]
[380190019,1755601833199,-200.81,0.00010095,2]
[380190020,1755601833221,-202.55,0.00010095,2]
[380190021,1755601833232,-304.78,0.00010095,2]
[380190022,1755601833242,-202.7,0.00010095,2]
[380190023,1755601833254,-301.76,0.00010095,2]
[380190024,1755601833264,-300.96,0.00010095,2]
[380190025,1755601833274,-303.38,0.00010095,2]
[380190026,1755601833285,-252.43,0.00010096,2]
[380190027,1755601833295,-201.25,0.00010096,2]
[380190028,1755601833306,-203.44,0.00010096,2]
[380190029,1755601833316,-203.68,0.00010096,2]
[380190030,1755601833326,-203.96,0.00010096,2]
[380190031,1755601833336,-304.19,0.00010096,2]
[380190032,1755601833346,-201.58,0.00010096,2]
[380190033,1755601833355,-203.14,0.00010096,2]
[380190034,1755601833365,-203.8,0.00010096,2]
[380190035,1755601833375,-300.15,0.00010096,2]
[380190036,1755601833386,-201.03,0.00010096,2]
[380190037,1755601833395,-203.6,0.00010096,2]
[380190038,1755601833405,-202.66,0.00010096,2]
[380190039,1755601833414,-305.5,0.00010096,2]
[380190040,1755601833425,-300.2,0.00010148,2]
[380190041,1755601833437,-3006.79,0.00010264,2]
[380190042,1755601833446,-201.99,0.00010264,2]
[380190043,1755601833456,-300.76,0.00010264,2]
[380190044,1755601833467,-200.48,0.00010264,2]
[380190045,1755601833476,-202.22,0.00010264,2]
[380190046,1755601833486,-305.79,0.00010264,2]
[380190047,1755601833495,-200.15,0.00010264,2]
[380190048,1755601833507,-160.0,0.00010449,2]
[380190049,1755601833516,-248.71531821,0.00010449,2]
[380190050,1755601833526,-500.0,0.00010483,2]
[380190051,1755601833536,-300.0,0.00010483,2]
[380190052,1755601833545,-500.0,0.00010483,2]
[380190053,1755601833555,-2000.0,0.00010483,2]
[380190054,1755601833564,-500.0,0.00010483,2]
[380190055,1755601833574,-300.0,0.00010483,2]
[380190056,1755601833583,-1000.0,0.00010721,2]
[380190057,1755601833594,-843.87140665,0.00010843,2]
[380190058,1755601833603,-599.0,0.00010847,2]
[380190059,1755601833613,-4152.0,0.0001085,2]
[380190060,1755601833623,-1732.404,0.0001085,2]
[380190061,1755601833631,-150.0,0.0001085,2]
[380190062,1755601833641,-203.14,0.0001089,2]
[380190063,1755601833651,-301.43,0.0001089,2]
[380190064,1755601833660,-203.72,0.0001089,2]
[380190065,1755601833670,-202.81,0.0001089,2]
[380190066,1755601833679,-458.43483364,0.00010897,2]
[380190067,1755601833689,-202.33,0.00010899,2]
[380190068,1755601833698,-201.87,0.00010899,2]
[380190069,1755601833707,-201.34,0.00010899,2]
[380190070,1755601833717,-203.02,0.00010899,2]
[380190071,1755601833727,-201.36,0.00010899,2]
[380190072,1755601833736,-302.25,0.00010899,2]
[380190073,1755601833746,-201.72,0.00010899,2]
[380190074,1755601833755,-500.0,0.00010899,2]
[380190075,1755601833765,-165.19031279,0.00010899,2]
[380190076,1755601833775,-186.66960352,0.00010899,2]
[380190077,1755601833784,-169.48525129,0.00010899,2]
[380190078,1755601833794,-201.65,0.000109,2]
[380190079,1755601833803,-201.83,0.000109,2]
[380190080,1755601833813,-305.37,0.000109,2]
[380190081,1755601833823,-201.26,0.000109,2]
[380190082,1755601833833,-203.68,0.000109,2]
[380190083,1755601833842,-203.86,0.000109,2]
[380190084,1755601833851,-301.53,0.000109,2]
[380190085,1755601833861,-200.83,0.000109,2]
[380190086,1755601833871,-202.6,0.000109,2]
[380190087,1755601833881,-301.91,0.000109,2]
[380190088,1755601833890,-202.11,0.000109,2]
[380190089,1755601833901,-201.58,0.000109,2]
[380190090,1755601833910,-302.28,0.000109,2]
[380190091,1755601833920,-202.73,0.000109,2]
[380190092,1755601833930,-202.09,0.000109,2]
[380190093,1755601833939,-201.37,0.000109,2]
[380190094,1755601833949,-303.19,0.000109,2]
[380190095,1755601833959,-197.45730054,0.000109,2]
[380190096,1755601833970,-5000.0,0.000109,2]
[380190097,1755601833980,-500.0,0.00010973,2]
[380190098,1755601833990,-500.0,0.00010973,2]
[380190099,1755601834000,-500.0,0.00010973,2]
[380190100,1755601834010,-500.0,0.00010973,2]
[380190101,1755601834020,-150.0,0.00010973,2]
[380190102,1755601834029,-150.0,0.00010973,2]
[380190103,1755601834039,-639.0,0.00010973,2]
[380190104,1755601834049,-500.0,0.00010973,2]
[380190105,1755601834060,-478.0,0.00010973,2]
[380190106,1755601834071,-150.0,0.00010973,2]
[380190107,1755601834081,-1449.0,0.00010973,2]
[380190108,1755601834091,-150.0,0.00010973,2]
[380190109,1755601834101,-674.0,0.00010973,2]
[380190110,1755601834111,-150.0,0.00010973,2]
[380190111,1755601834122,-200.0,0.0001098,2]
[380190112,1755601834133,-607.0,0.0001099,2]
[380190113,1755601834142,-770.5602885,0.00010992,2]
[380190114,1755601834152,-7500.0,0.00010998,2]
[380190115,1755601834162,-850.65,0.00010999,2]
[380190116,1755601834171,-161.045,0.00011,2]
[380190117,1755601834181,-2029.0,0.00011,2]
[380190118,1755601834191,-672.91,0.00011,2]
[380190119,1755601834200,-566.0,0.00011,2]
[380190120,1755601834210,-1297.0,0.00011,2]
[380190121,1755601834220,-300.0,0.00011,2]
[380190122,1755601834230,-218.0,0.00011,2]
[380190123,1755601834240,-218.0,0.00011,2]
[380190124,1755601834256,-218.0,0.00011,2]
[380190125,1755601834270,-218.0,0.00011,2]
[380190126,1755601834280,-218.0,0.00011,2]
[380190127,1755601834289,-218.0,0.00011,2]
[380190128,1755601834299,-218.0,0.00011,2]
[380190129,1755601834309,-218.0,0.00011,2]
[380190130,1755601834319,-218.0,0.00011,2]
[380190131,1755601834329,-218.0,0.00011,2]
[380190132,1755601834339,-218.0,0.00011,2]
[380190133,1755601834348,-218.0,0.00011,2]
[380190134,1755601834358,-218.0,0.00011,2]
[380190135,1755601834367,-218.0,0.00011,2]
[380190136,1755601834377,-21449.53,0.00011,2]
[380190137,1755601834386,-150.0,0.00011,2]
[380190138,1755601834396,-150.0,0.00011,2]
[380190139,1755601834405,-4278.54310508,0.00011,2]
[380190140,1755601834415,-39021.19061911,0.00011,2]
[380190147,1755601837727,-364.73999997,0.0001085,2]
[380190161,1755601837874,-348.60368445,0.0001085,2]
[380190333,1755601839439,-180.65631558,0.0001085,2]
[380190336,1755601839449,-212.02104404,0.00010897,2]
[380190339,1755601839459,-242.58569233,0.00011,2]
[380190355,1755601839538,-1156.2,0.00011,2]
[380190705,1755601843231,-880.968,0.0001085,2]
[380190707,1755601843241,-3332.11055643,0.00011,2]
[380190709,1755601843253,-9238.45846166,0.00011,2]
[380190711,1755601843264,-151.0,0.00011,2]
[380190713,1755601843274,-181.2590428,0.00011,2]
[380190715,1755601843284,-213.0,0.00011,2]
[380190718,1755601843294,-213.0,0.00011,2]
[380190720,1755601843304,-213.0,0.00011,2]
[380190722,1755601843313,-213.0,0.00011,2]
[380190724,1755601843322,-213.0,0.00011,2]
[380190726,1755601843332,-213.0,0.00011,2]
[380190728,1755601843342,-213.0,0.00011,2]
[380190730,1755601843352,-607.0,0.00011,2]
[380190732,1755601843362,-607.0,0.00011,2]
[380190734,1755601843371,-607.0,0.00011,2]
[380190736,1755601843380,-607.0,0.00011,2]
[380190738,1755601843390,-607.0,0.00011,2]
[380190740,1755601843399,-607.0,0.00011,2]
[380190742,1755601843408,-607.0,0.00011,2]
[380190744,1755601843418,-607.0,0.00011,2]
[380190746,1755601843427,-607.0,0.00011,2]
[380190748,1755601843444,-607.0,0.00011,2]
[380190750,1755601843454,-607.0,0.00011,2]
[380190752,1755601843463,-607.0,0.00011,2]
[380190754,1755601843473,-607.0,0.00011,2]
[380190756,1755601843483,-607.0,0.00011,2]
[380190758,1755601843492,-607.0,0.00011,2]
[380190760,1755601843503,-607.0,0.00011,2]
[380190762,1755601843513,-607.0,0.00011,2]
[380190764,1755601843524,-607.0,0.00011,2]
[380190766,1755601843533,-607.0,0.00011,2]
[380190768,1755601843543,-200.0,0.00011,2]
[380190770,1755601843552,-500.0,0.00011,2]
[380190772,1755601843561,-734.0,0.00011,2]
[380190774,1755601843570,-200.0,0.00011,2]
[380190776,1755601843579,-1075.36117536,0.00011,2]
[380190781,1755601843623,-1685.65445602,0.00011,2]
[380190783,1755601843634,-524.68431067,0.00011,2]
[380190944,1755601845674,-6417.00000001,0.00011,2]
[380190959,1755602149336,150.0,9.1e-05,2]
[380190960,1755602152248,2587.83,9.5e-05,2]
[380190962,1755602165297,2587.63,9.5e-05,2]
[380190965,1755602179135,2587.63,9.5e-05,2]
[380190973,1755602192418,2587.63,9.5e-05,2]
[380190978,1755602210979,2587.63,9.5e-05,2]
[380190981,1755602226591,2587.63,9.5e-05,2]
[380190982,1755602244452,2587.63,9.5e-05,2]
[380190986,1755602534485,188.83790807,0.00012499,10]
[380190989,1755602668725,150.0,9.1e-05,2]
[380190992,1755602738258,1911.85,9e-05,2]
[380190993,1755602738282,7861.75677919,9e-05,2]
[380190994,1755602764913,7138.24322081,8e-05,2]
[380190995,1755602764934,3894.50792942,8e-05,2]
[380191016,1755602883641,2000.0,9.501e-05,2]
[380191022,1755602909022,1000.0,0.00022,120]
[380191085,1755603000984,7000.0,9.501e-05,2]
[380191121,1755603032603,-512.68,9.641e-05,2]
[380191123,1755603032613,-328.32,9.706e-05,2]
[380191125,1755603032625,-1671.68,9.706e-05,2]
[380191127,1755603032634,-500.0,9.706e-05,2]
[380191129,1755603032643,-500.0,9.754e-05,2]
[380191131,1755603032653,-300.0,9.77e-05,2]
[380191133,1755603032662,-300.0,9.77e-05,2]
[380191135,1755603032672,-1200.0,9.77e-05,2]
[380191137,1755603032681,-300.0,9.77e-05,2]
[380191139,1755603032690,-10163.51,9.771e-05,2]
[380191141,1755603032699,-300.0,9.785e-05,2]
[380191143,1755603032709,-500.0,9.785e-05,2]
[380191145,1755603032718,-201.94,9.8e-05,2]
[380191147,1755603032727,-170.0,9.836e-05,7]
[380191149,1755603032738,-204.9533888,9.847e-05,2]
[380191152,1755603032748,-1000.0,9.859e-05,2]
[380191154,1755603032758,-412.57,9.89e-05,2]
[380191156,1755603032769,-2346.36,9.915e-05,2]
[380191158,1755603032778,-456.65,9.94e-05,2]
[380191160,1755603032788,-505.11,9.966e-05,2]
[380191162,1755603032798,-519.92,9.973e-05,2]
[380191164,1755603032814,-7723.77957392,0.0001,2]
[380191166,1755603032833,-401.74164806,0.00010134,2]
[380191168,1755603032843,-1746.17715371,0.00010136,2]
[380191170,1755603032852,-150.0,0.0001028,2]
[380191172,1755603032861,-798.0,0.00010347,2]
[380191174,1755603032871,-3000.0,0.00010449,2]
[380191176,1755603032880,-248.71531821,0.00010449,2]
[380191178,1755603032889,-2000.0,0.00010605,2]
[380191180,1755603032898,-500.0,0.00010605,2]
[380191182,1755603032908,-420.0,0.00010747,2]
[380191184,1755603032917,-300.0,0.00010748,2]
[380191186,1755603032926,-500.0,0.00010748,2]
[380191188,1755603032936,-3000.0,0.000108,2]
[380191190,1755603032945,-150.0,0.00010819,2]
[380191192,1755603032954,-843.87140665,0.00010826,2]
[380191194,1755603032963,-4152.0,0.0001085,2]
[380191196,1755603032972,-1297.0,0.0001085,2]
[380191198,1755603032981,-212.02104404,0.00010873,2]
[380191200,1755603032990,-203.52,0.00010874,2]
[380191202,1755603032999,-201.79,0.00010874,2]
[380191204,1755603033009,-203.8,0.00010874,2]
[380191206,1755603033019,-203.45,0.00010874,2]
[380191208,1755603033029,-203.63,0.00010874,2]
[380191210,1755603033038,-203.2,0.00010874,2]
[380191212,1755603033047,-200.62,0.00010874,2]
[380191214,1755603033058,-200.22,0.00010874,2]
[380191216,1755603033067,-202.65,0.00010874,2]
[380191218,1755603033077,-200.53,0.00010874,2]
[380191220,1755603033087,-203.46,0.00010874,2]
[380191222,1755603033097,-200.28,0.00010875,2]
[380191224,1755603033106,-202.54,0.00010875,2]
[380191226,1755603033116,-200.55,0.00010875,2]
[380191228,1755603033126,-203.28,0.00010875,2]
[380191230,1755603033136,-200.25,0.00010875,2]
[380191232,1755603033146,-200.5,0.00010875,2]
[380191234,1755603033155,-201.27,0.00010875,2]
[380191236,1755603033165,-203.02,0.00010875,2]
[380191238,1755603033175,-200.5,0.00010875,2]
[380191240,1755603033187,-202.1,0.00010875,2]
[380191242,1755603033197,-202.07,0.00010875,2]
[380191244,1755603033207,-200.5,0.00010875,2]
[380191246,1755603033217,-201.76,0.00010875,2]
[380191248,1755603033227,-203.54,0.00010875,2]
[380191250,1755603033236,-202.69,0.00010875,2]
[380191291,1755603033627,-218.72824402,0.00010893,2]
[380191293,1755603033638,-160.0,0.00010893,2]
[380191295,1755603033647,-500.0,0.00010893,2]
[380191297,1755603033657,-308.44635776,0.00010893,2]
[380191299,1755603033667,-465.63321896,0.00010899,2]
[380191301,1755603033676,-956.3906036,0.000109,2]
[380191303,1755603033686,-1234.1123,0.000109,2]
[380191305,1755603033696,-5000.0,0.000109,2]
[380191308,1755603033705,-458.43483364,0.00010913,2]
[380191310,1755603033721,-301.94,0.00010916,2]
[380191312,1755603033741,-500.0,0.00010948,2]
[380191313,1755603033751,-500.0,0.00010973,2]
[380191316,1755603033761,-159.95114314,0.00010973,2]
[380191318,1755603033771,-612.0,0.00010973,2]
[380191320,1755603033780,-290.18205873,0.00010973,2]
[380191322,1755603033791,-1388.0,0.00010973,2]
[380191324,1755603033800,-270.19803509,0.00010973,2]
[380191326,1755603033813,-646.0,0.00010992,2]
[380191328,1755603033825,-1568.3747593,0.00010992,2]
[380191330,1755603033835,-500.0,0.00010993,2]
[380191332,1755603033844,-500.0,0.00010993,2]
[380191334,1755603033855,-500.0,0.00010993,2]
[380191336,1755603033865,-815.21,0.00010999,2]
[380191338,1755603033875,-9560.2824516,0.00010999,2]
[380191340,1755603033886,-158861.97313818,0.00010999,2]
[380191342,1755603033899,-1050.83413983,0.00010999,2]
[380191344,1755603033911,-25928.86128523,0.00010999,2]
[380191351,1755603033967,-968.71026342,0.00010999,2]
[380191353,1755603033979,-3409.30934651,0.00010999,2]
[380191357,1755603034037,-13082.60582833,0.00010999,2]
[380191358,1755603034048,-2857.33803261,0.00010999,2]
[380191359,1755603034060,-59082.15995132,0.00010999,2]
[380191360,1755603034073,-2595.33099264,0.00010999,2]
[380191361,1755603034086,-1044.07494815,0.00010999,2]
[380191636,1755603037738,-457.0,0.00010973,2]
[380191637,1755603037747,-174.14156635,0.00010999,2]
[380191638,1755603037786,-426.14711154,0.00010999,2]
[380191639,1755603037797,-10474.6342535,0.00010999,2]
[380191640,1755603037808,-5082.87382155,0.00010999,2]
[380191641,1755603037824,-136781.82769806,0.00010999,2]
[380191648,1755603037963,-4395.35606981,0.00010999,2]
[380191650,1755603037975,-582.14848325,0.00010999,2]
[380191656,1755603038019,-264154.40363997,0.00010999,2]
[380191658,1755603038028,-19120.56490318,0.00010999,2]
[380191660,1755603038038,-2000.0,0.00011,2]
[380191662,1755603038048,-2000.0,0.00011,2]
[380191664,1755603038057,-19304.58,0.00011,2]
[380191666,1755603038067,-200.0,0.00011,2]
[380191668,1755603038077,-500.0,0.00011,2]
[380191670,1755603038086,-500.0,0.00011,2]
[380191672,1755603038096,-500.0,0.00011,2]
[380191674,1755603038105,-500.0,0.00011,2]
[380191676,1755603038115,-500.0,0.00011,2]
[380191678,1755603038125,-500.0,0.00011,2]
[380191680,1755603038134,-500.0,0.00011,2]
[380191682,1755603038143,-500.0,0.00011,2]
[380191684,1755603038152,-500.0,0.00011,2]
[380191686,1755603038161,-500.0,0.00011,2]
[380191688,1755603038171,-500.0,0.00011,2]
[380191690,1755603038179,-500.0,0.00011,2]
[380191692,1755603038189,-500.0,0.00011,2]
[380191694,1755603038198,-500.0,0.00011,2]
[380191696,1755603038207,-500.0,0.00011,2]
[380191698,1755603038216,-500.0,0.00011,2]
[380191700,1755603038226,-500.0,0.00011,2]
[380191702,1755603038235,-500.0,0.00011,2]
[380191704,1755603038244,-500.0,0.00011,2]
[380191706,1755603038253,-500.0,0.00011,2]
[380191708,1755603038262,-500.0,0.00011,2]
[380191710,1755603038272,-500.0,0.00011,2]
[380191712,1755603038281,-500.0,0.00011,2]
[380191714,1755603038291,-500.0,0.00011,2]
[380191716,1755603038300,-500.0,0.00011,2]
[380191718,1755603038310,-500.0,0.00011,2]
[380191720,1755603038319,-736.0,0.00011,2]
[380191722,1755603038328,-200.0,0.00011,2]
[380191724,1755603038338,-1264811.21131818,0.00011,2]
[380191726,1755603038347,-3322896.39678922,0.00011,2]
[380191728,1755603038357,-748.52461,0.00011,2]
[380191730,1755603038367,-8586784.95528425,0.00011,2]
[380191732,1755603038377,-151.0,0.00011,2]
[380191734,1755603038387,-151.0,0.00011,2]
[380191736,1755603038396,-151.0,0.00011,2]
[380191738,1755603038406,-151.0,0.00011,2]
[380191740,1755603038416,-151.0,0.00011,2]
[380191742,1755603038431,-151.0,0.00011,2]
[380191745,1755603038441,-151.0,0.00011,2]
[380191747,1755603038451,-151.0,0.00011,2]
[380191749,1755603038460,-151.0,0.00011,2]
[380191751,1755603038470,-151.0,0.00011,2]
[380191753,1755603038479,-236.208573,0.00011,2]
[380191755,1755603038488,-151.0,0.00011,2]
[380191757,1755603038497,-151.0,0.00011,2]
[380191759,1755603038506,-151.0,0.00011,2]
[380191761,1755603038516,-151.0,0.00011,2]
[380191763,1755603038525,-151.0,0.00011,2]
[380191765,1755603038535,-151.0,0.00011,2]
[380191767,1755603038544,-500.0,0.00011003,2]
[380191769,1755603038554,-201.94,0.00011024,2]
[380191771,1755603038566,-229.0,0.0001104,2]
[380191773,1755603038575,-500.0,0.00011073,2]
[380191775,1755603038585,-500.0,0.00011073,2]
[380191777,1755603038595,-444.27748332,0.00011073,2]
[380191779,1755603038604,-150.0,0.00011088,2]
[380191781,1755603038615,-1135.51576042,0.00011088,2]
[380191784,1755603038629,-1447.22596916,0.00011088,2]
[380191785,1755603038639,-1758.9361779,0.00011088,2]
[380191788,1755603038649,-2070.64638665,0.00011088,2]
[380191790,1755603038658,-2382.35659539,0.00011088,2]
[380191792,1755603038668,-2694.06680413,0.00011089,2]
[380191794,1755603038677,-3005.77701288,0.00011089,2]
[380191796,1755603038687,-3317.48722162,0.00011089,2]
[380191798,1755603038696,-3629.19743036,0.00011089,2]
[380191800,1755603038707,-1000.0,0.00011092,2]
[380191802,1755603038716,-155.0,0.00011098,2]
[380191804,1755603038725,-59208.96835637,0.00011099,2]
[380191806,1755603038738,-5138.82104455,0.00011099,2]
[380192300,1755603043627,-484.26281986,0.0001085,2]
[380192302,1755603043639,-81.73718014,0.0001085,2]
[380192304,1755603043648,-11918.26281985,0.00011099,2]
[380192362,1755603044189,-856.4910453,0.00011099,2]
[380192368,1755603044234,-21387.33320996,0.00011099,2]
[380193534,1755604231857,-208.07,9.568e-05,2]
[380193535,1755604231867,-500.0,9.579e-05,2]
[380193536,1755604231877,-300.0,9.59e-05,2]
[380193537,1755604231886,-500.0,9.63e-05,2]
[380193538,1755604231896,-1000.0,9.656e-05,2]
[380193539,1755604231906,-339.35822177,9.727e-05,2]
[380193540,1755604231916,-165.19,9.727e-05,2]
[380193541,1755604231925,-575.4,9.736e-05,2]
[380193542,1755604231935,-170.0,9.836e-05,7]
[380193543,1755604231945,-182.37,9.954e-05,2]
[380193544,1755604231954,-182.37,9.959e-05,2]
[380193545,1755604231963,-182.37,9.965e-05,2]
[380193546,1755604231972,-182.37,9.97e-05,2]
[380193547,1755604231983,-182.37,9.975e-05,2]
[380193548,1755604231992,-182.37,9.98e-05,2]
[380193549,1755604232001,-182.37,9.985e-05,2]
[380193550,1755604232011,-182.37,9.991e-05,2]
[380193551,1755604232020,-182.37,9.996e-05,2]
[380193552,1755604232029,-500.0,0.0001,2]
[380193553,1755604232038,-214.57551346,0.0001,2]
[380193554,1755604232047,-150.0,0.0001,2]
[380193555,1755604232057,-182.37,0.00010001,2]
[380193556,1755604232066,-182.37,0.00010006,2]
[380193557,1755604232075,-182.37,0.00010012,2]
[380193558,1755604232084,-182.37,0.00010017,2]
[380193559,1755604232093,-182.37,0.00010022,2]
[380193560,1755604232102,-182.37,0.00010027,2]
[380193561,1755604232112,-182.37,0.00010033,2]
[380193562,1755604232121,-150.0,0.00010033,2]
[380193563,1755604232130,-300.0,0.00010033,2]
[380193586,1755604232506,-182.37,0.00010038,2]
[380193587,1755604232517,-182.37,0.00010043,2]
[380193588,1755604232527,-182.37,0.00010048,2]
[380193589,1755604232536,-182.37,0.00010054,2]
[380193590,1755604232545,-500.0,0.00010055,2]
[380193591,1755604232555,-500.0,0.0001011,2]
[380193592,1755604232564,-200.74,0.00010114,2]
[380193593,1755604232573,-202.8,0.00010114,2]
[380193594,1755604232583,-201.79,0.00010114,2]
[380193595,1755604232592,-201.24,0.000102,2]
[380193596,1755604232602,-203.55,0.000102,2]
[380193597,1755604232611,-202.72,0.000102,2]
[380193598,1755604232620,-339.35822177,0.00010314,2]
[380193599,1755604232630,-166.06,0.0001038,2]
[380193600,1755604232641,-248.71531821,0.00010449,2]
[380193601,1755604232650,-160.0,0.00010449,2]
[380193602,1755604232659,-2000.0,0.00010524,2]
[380193603,1755604232669,-500.0,0.00010524,2]
[380193604,1755604232677,-300.0,0.00010524,2]
[380193605,1755604232687,-250.0,0.00010524,2]
[380193606,1755604232696,-500.0,0.00010524,2]
[380193607,1755604232705,-203.84,0.00010556,2]
[380193608,1755604232714,-201.53,0.00010556,2]
[380193609,1755604232724,-200.99,0.00010556,2]
[380193610,1755604232733,-203.57,0.00010556,2]
[380193611,1755604232743,-203.53,0.00010699,2]
[380193612,1755604232753,-200.14,0.00010699,2]
[380193613,1755604232762,-200.39,0.00010699,2]
[380193614,1755604232772,-203.45,0.00010699,2]
[380193615,1755604232783,-201.93,0.00010699,2]
[380193616,1755604232792,-843.87140665,0.00010763,2]
[380193617,1755604232801,-208.07,0.00010764,2]
[380193618,1755604232810,-212.02104404,0.00010797,2]
[380193619,1755604232819,-458.43483364,0.00010797,2]
[380193620,1755604232829,-201.37,0.00010798,2]
[380193621,1755604232838,-202.03,0.00010798,2]
[380193622,1755604232847,-201.07,0.00010799,2]
[380193623,1755604232857,-203.47,0.00010799,2]
[380193624,1755604232866,-203.11,0.00010799,2]
[380193625,1755604232876,-204.0,0.00010799,2]
[380193626,1755604232886,-203.92,0.00010799,2]
[380193627,1755604232896,-200.16,0.00010799,2]
[380193628,1755604232906,-200.11,0.00010799,2]
[380193629,1755604232916,-203.1,0.00010799,2]
[380193630,1755604232925,-200.56,0.00010799,2]
[380193631,1755604232941,-201.2,0.00010799,2]
[380193632,1755604232960,-1000.0,0.00010863,2]
[380193633,1755604232980,-1191.25882573,0.00010899,2]
[380193634,1755604233057,-2558.61917427,0.00010899,2]
[380193635,1755604233078,-201.15,0.00010988,2]
[380193636,1755604233099,-201.3,0.00010988,2]
[380193637,1755604233109,-201.16,0.00010988,2]
[380193638,1755604233119,-500.0,0.00010993,2]
[380193639,1755604233128,-150.0,0.00010993,2]
[380193640,1755604233138,-458.0,0.00010993,2]
[380193641,1755604233148,-1330.0,0.00010993,2]
[380193642,1755604233158,-600.0,0.00010993,2]
[380193643,1755604233167,-150.0,0.00010993,2]
[380193644,1755604233177,-500.0,0.00010993,2]
[380193645,1755604233186,-562.0,0.00010993,2]
[380193646,1755604233196,-500.0,0.00010993,2]
[380193647,1755604233208,-505.68889235,0.00010999,2]
[380193648,1755604233264,-275.55110765,0.00010999,2]
[380193649,1755604233274,-409.74835253,0.00010999,2]
[380193650,1755604233283,-189.48455801,0.00010999,2]
[380193651,1755604233293,-180.20992138,0.00010999,2]
[380193652,1755604233303,-8927.62572439,0.00011,2]
[380193653,1755604233312,-339.35822177,0.00011,2]
[380193654,1755604233321,-4152.0,0.0001101,2]
[380193655,1755604233331,-894.0,0.0001101,2]
[380193656,1755604233341,-1038.84130962,0.0001101,2]
[380193657,1755604233352,-133.15869038,0.0001101,2]
[380193658,1755604233362,-420.0,0.00011035,2]
[380193659,1755604233371,-255.0,0.00011036,2]
[380193660,1755604233380,-2076.7387867,0.00011091,2]
[380193661,1755604233390,-200.0,0.00011099,2]
[380193662,1755604233399,-200.0,0.00011099,2]
[380193663,1755604233410,-200.0,0.00011099,2]
[380193664,1755604233419,-623.77051,0.00011099,2]
[380193665,1755604233430,-200.0,0.00011099,2]
[380193666,1755604233439,-500.0,0.000111,2]
[380193667,1755604233448,-500.0,0.000111,2]
[380193668,1755604233458,-500.0,0.000111,2]
[380193669,1755604233467,-500.0,0.000111,2]
[380193670,1755604233478,-500.0,0.000111,2]
[380193671,1755604233487,-500.0,0.000111,2]